Cogmind - Beta 13 *** ADVENTURER MODE // 2024.03.18 @ 19:59:18 Player: skye Result: Destroyed by G-67 Veteran with Plasma Rifle Performance ------------- Evolutions (6) 3000 Regions Visited (13) 2600 Robots Destroyed (215) 1075 Value Destroyed (8462) 8462 Prototype IDs (8) 160 Alien Tech Used (0) 0 Bonus (551) 551 TOTAL SCORE: 15848 Bonus ------- High Alert Combat Kills 285 Follower Combat Kills 384 Friendly Fire -118 Cogmind --------- Core Integrity 0/1150 Matter 27/300 Energy 61/100 System Corruption 7% Temperature Hot (289) Movement Rolling (100) Location -4/Factory Parts ------- > --- POWER (2) -------- Improved Fusion Compressor > --- PROPULSION (6) --- Armored Huge Wheel Armored Huge Wheel > --- UTILITY (6) ------ Advanced Heat Sink Improved Signal Interpreter Improved Target Analyzer Dynamic Insulation System > --- WEAPON (5) ------- Field Laser Plasma Rifle KE Penetrator KE Penetrator > --- INVENTORY (5) ---- Improved Treads Antigrav System Experimental Heat Sink Peak State ------------ > --- POWER ------------ Reinforced Fission Core Particle Reactor > --- PROPULSION ------- Armored Huge Wheel Antigrav System Antigrav System Antigrav System Improved Linear Gravjet > --- UTILITY ---------- Improved Cooling System Large Storage Unit Advanced Weight Redist. System Improved Signal Interpreter Advanced Targeting Computer Core Analyzer > --- WEAPON ----------- Dispersion Rifle Gauss Rifle Improved Remote Datajack Power Sword > --- INVENTORY -------- Improved Deuterium Engine Neutrino Core Improved Treads Improved Treads Carbon-fiber Leg Myomer Leg Advanced Cryofiber Web Experimental Heat Sink Improved Target Analyzer Improved Weapon Cycler Remote Force Field Improved Component Analysis Suite Dynamic Insulation System Plasma Rifle [Rating: 94] Favorites ----------- Power Particle Reactor Engine Improved Deuterium Engine Power Core Micro Fission Core Reactor Particle Reactor Propulsion Armored Huge Wheel Treads Improved Treads Leg Flexi-carbon Leg Wheel Armored Huge Wheel Hover Unit Antigrav System Flight Unit Impulse Thruster Utility Large Storage Unit Device Improved Cooling System Storage Large Storage Unit Processor Core Analyzer Protection Layered Light Armor Plating Weapon Heavy Laser Energy Gun Heavy Laser Energy Cannon Long-range Proton Cannon Ballistic Gun Gauss Rifle Ballistic Cannon Enhanced Gauss Cannon Launcher Rocket Launcher Special Weapon Improved Remote Datajack Impact Weapon Maul Slashing Weapon Power Sword Special Melee Weapon Datajack Build | -11 -10 -10 -9 -9 -8 -7 -6 -6 -6 -5 -5 -5 -4 ------- Run | Yrd Mat Min Mat Sto Mat Fac Fac Low Low Fac Upp Upp Fac Slots Evolved 12 | . . . 2 . 2 2 2 . . 2 . . 2 Power 1 | . . . . . . 1 . . . . . . . Propulsion 4 | . . . 1 . 1 . 1 . . . . . 1 Utility 4 | . . . 1 . . 1 1 . . 1 . . . Weapon 3 | . . . . . 1 . . . . 1 . . 1 Parts Attached 223 | 6 13 . 14 8 34 18 12 2 5 28 13 17 53 Power 38 | 1 2 . 4 . 4 5 1 1 1 7 2 3 7 Engine 14 | 1 2 . 3 . 2 1 1 . 1 1 1 . 1 Core 20 | . . . 1 . 2 4 . 1 . 6 . 2 4 Reactor 4 | . . . . . . . . . . . 1 1 2 Propulsion 66 | 2 4 . 4 5 11 2 3 . . 6 3 3 23 Treads 6 | . . . . . . . . . . . . . 6 Leg 18 | . . . . 3 2 . . . . 4 3 3 3 Wheel 33 | 2 4 . 4 2 9 2 3 . . . . . 7 Hover 8 | . . . . . . . . . . 2 . . 6 Flight 1 | . . . . . . . . . . . . . 1 Utility 53 | 1 4 . 2 . 9 6 4 . 1 9 4 2 11 Device 39 | . 2 . 2 . 7 2 1 . 1 9 3 2 10 Storage 3 | 1 . . . . 1 1 . . . . . . . Processor 6 | . 2 . . . . . 3 . . . . . 1 Hackware . | . . . . . . . . . . . . . . Protection 5 | . . . . . 1 3 . . . . 1 . . Artifact . | . . . . . . . . . . . . . . Weapon 66 | 2 3 . 4 3 10 5 4 1 3 6 4 9 12 Energy Gun 21 | . 2 . 3 . 3 2 1 . 2 1 . 2 5 Energy Cannon 6 | . . . . . 1 1 1 . . 1 . 2 . Ballistic Gun 26 | 2 1 . 1 . 4 2 2 . . 2 3 3 6 Ballistic Cannon 5 | . . . . . 1 . . 1 . 1 1 1 . Launcher 1 | . . . . 1 . . . . . . . . . Special Weapon 2 | . . . . 1 . . . . . . . . 1 Impact Weapon 1 | . . . . . 1 . . . . . . . . Slashing Weapon 1 | . . . . . . . . . . . . 1 . Piercing Weapon . | . . . . . . . . . . . . . . Special Melee Weapon 3 | . . . . 1 . . . . 1 1 . . . Unidentified Prototypes 2 | . . . . . 2 . . . . . . . . Parts Lost 72 | . . . 2 13 6 . 1 2 . 5 . 10 33 Power 11 | . . . 1 1 . . 1 1 . 1 . . 6 Propulsion 24 | . . . 1 7 3 . . . . 3 . 3 7 Utility 14 | . . . . 1 2 . . . . 1 . 1 9 Weapon 23 | . . . . 4 1 . . 1 . . . 6 11 Highest Loss Streak 16 | . . . 1 13 5 . 1 2 . 3 . 4 16 To Critical Strikes 1 | . . . . 1 . . . . . . . . . Average Slot Usage (%) 85 | . 98 100 95 84 77 83 84 80 84 85 94 86 74 Engine 4 | . 14 14 5 8 5 11 3 . 4 2 2 1 . Core 4 | . . . 5 . 3 3 9 6 6 7 7 3 4 Reactor 1 | . . . . . . . . . . . 1 4 4 Leg 8 | . . . . 4 1 . . . . 5 23 19 4 Wheel 10 | . 28 28 29 22 16 14 18 20 20 9 . . 1 Device 8 | . 8 . 11 10 9 13 6 6 5 10 6 9 11 Storage 4 | . 3 . . . 1 6 6 6 6 5 5 5 3 Processor 15 | . 15 28 22 22 10 7 13 20 20 17 17 17 13 Protection 1 | . . . . . 3 2 5 . . . 3 . . Energy Gun 7 | . 12 14 11 8 2 6 11 6 10 6 11 2 5 Energy Cannon 2 | . . . . . 3 8 1 . . 3 . 3 . Ballistic Gun 7 | . 15 14 11 7 12 6 5 6 . 6 10 3 7 Ballistic Cannon 1 | . . . . . 3 . . 5 6 3 . 3 . Slashing Weapon 1 | . . . . . . . . . . . . 3 3 Naked Turns . | . . . . . . . . . . . . . . Heaviest Build 82 | 10 14 10 14 14 27 60 58 47 46 74 78 82 81 Greatest Support 86 | 26 26 20 32 32 56 56 66 66 66 66 86 86 65 Greatest Overweight (x) 18 | . . . . 1 7 1 1 . . 3 1 2 18 Average Overweight (x) . | . . . . . . . . . . . . . 1 Largest Inventory Capacity 15 | 8 8 5 5 5 5 15 15 15 15 15 15 15 15 Average Capacity 12 | 6 5 5 5 5 5 13 15 15 15 15 15 15 12 Most Carried 15 | 2 6 5 5 5 5 15 15 15 15 15 15 15 15 Average Carried 11 | 1 4 4 4 4 4 12 14 13 14 14 14 13 9 Final Capacity 15 | 8 5 5 5 5 5 15 15 15 15 15 15 15 5 Final Carried 15 | 2 5 5 4 2 5 15 15 14 15 15 15 15 3 Class Distribution -------------------- 34% | Scavenger-Gunner 29% | Gunner 12% | Scavenger-Mutant 11% | Mutant 5% | Skirmisher Dominant Class ---------------- Mutant | -10/Materials Mutant | -10/Mines Scavenger-Mutant | -9/Materials Commander-Mutant | -9/Storage Scavenger-Gunner | -8/Materials Skirmisher | -7/Factory Gunner | -6/Factory Gunner | -6/Lower Caves Scavenger-Gunner | -6/Lower Caves Gunner | -5/Factory Gunner | -5/Upper Caves Scavenger-Gunner | -5/Upper Caves Scavenger-Gunner | -4/Factory Resources | -11 -10 -10 -9 -9 -8 -7 -6 -6 -6 -5 -5 -5 -4 ----------- Run | Yrd Mat Min Mat Sto Mat Fac Fac Low Low Fac Upp Upp Fac Matter Collected 5395 | 151 294 24 237 183 1122 488 212 103 174 378 645 698 686 Remotely 145 | . 145 . . . . . . . . . . . . Salvage Created 9235 | . 489 87 510 395 1659 1200 578 311 171 490 862 977 1506 Parts 461 | . 25 11 32 24 70 59 37 16 10 33 45 29 70 Haulers Intercepted 4 | . . . . . 2 1 . . . . . . 1 Recyclers Shooed 8 | . 2 . . 1 . 2 . . . . . . 3 Parts Field Recycled . | . . . . . . . . . . . . . . Retrieved Matter . | . . . . . . . . . . . . . . Parts Self-Destructed 86 | . . . . . . . . 13 11 . 28 34 . Prevented 13 | . . . . . . . . 3 . . 4 6 . Kills | -11 -10 -10 -9 -9 -8 -7 -6 -6 -6 -5 -5 -5 -4 ------- Run | Yrd Mat Min Mat Sto Mat Fac Fac Low Low Fac Upp Upp Fac Combat Hostiles Destroyed 183 | . 9 6 11 9 33 25 11 8 5 8 13 19 26 Melee 1 | . . . . . . . . . . . . 1 . Guns 134 | . 9 6 11 9 19 13 7 5 4 3 13 9 26 Cannons 44 | . . . . . 14 11 2 3 1 5 . 8 . AOE 3 | . . . . . . . 2 . . . . 1 . Classes Destroyed 18 | . 3 1 3 2 4 1 1 . 2 . 1 . . Worker 7 | . . . . . 3 . . . . . . . 4 Builder 4 | . . . 2 1 . . 1 . . . . . . Tunneler 1 | . . . 1 . . . . . . . . . . Hauler 4 | . . . . . 2 1 . . . . . . 1 Recycler 3 | . 1 . . . 2 . . . . . . . . Operator 1 | . . . . 1 . . . . . . . . . Watcher 12 | . 3 . 1 . 2 3 2 . . . . . 1 Swarmer 50 | . . 6 2 . 7 10 4 5 . . 2 4 10 Grunt 75 | . 9 . 7 8 16 8 4 2 2 2 2 10 5 Brawler 3 | . . . . . 2 . . . . . 1 . . Duelist 5 | . . . . 1 1 1 . . . . . 2 . Sentry 23 | . . . 2 . 6 5 . 1 . 2 2 2 3 Hunter 5 | . . . . . 1 . . . . . 2 . 2 Programmer 13 | . . . . . . 1 1 . . 4 . 1 6 Heavy 1 | . . . . . . . 1 . . . . . . Behemoth 2 | . . . . . . . . . 1 . 1 . . Thief 2 | . . . . . . . . . 2 . . . . Thug 2 | . . . . . . . 1 . . . 1 . . Fireman 2 | . . . . . . . . . . . 2 . . Best Kill Streak 9 | . 4 3 4 6 9 5 4 5 2 2 6 8 9 Combat Bots Only 8 | . 3 3 3 5 8 5 3 5 2 2 6 8 6 Max Kills in Single Turn 3 | . 1 1 1 1 2 2 3 2 2 1 2 2 3 Gunslinging 2 | . . . . . . . . 1 . . 1 . 2 Exploded 2 | . . . . . . . 2 . . . . 1 . Melee 1 | . . . . . . . . . . . . 1 . Uniques/NPCs Destroyed . | . . . . . . . . . . . . . . Combat | -11 -10 -10 -9 -9 -8 -7 -6 -6 -6 -5 -5 -5 -4 -------- Run | Yrd Mat Min Mat Sto Mat Fac Fac Low Low Fac Upp Upp Fac Hostile Shots Fired 1398 | . 35 11 47 113 139 162 63 38 42 55 89 133 471 Missed 425 | . 15 2 11 32 41 61 27 12 16 9 23 36 140 Damage Taken 12738 | . 197 58 299 898 1111 929 492 392 393 629 880 1631 4829 Core 2355 | . 55 21 37 192 112 112 80 16 117 38 116 295 1164 Absorbed by Shields 219 | . . . . . . . . . . 171 33 . 15 Ignored by Resistances 3690 | . 59 18 93 271 317 286 138 108 109 221 254 455 1361 Regen/Repaired (Parts) 248 | . 37 . . . . . 211 . . . . . . Core Remaining (%) 71 | 100 . 69 . 42 79 84 . . 74 . . 55 . Volleys Fired 489 | . 40 6 38 31 76 60 25 11 18 19 28 43 94 Largest 5 | . 2 2 2 2 3 3 3 3 3 4 4 4 5 Hottest 240 | . 73 73 79 79 133 146 168 154 186 240 200 229 239 Shots Fired 1254 | . 80 12 75 58 208 181 72 33 48 71 112 119 185 Gun 1021 | . 80 12 75 58 152 107 67 27 30 44 112 72 185 Cannon 233 | . . . . . 56 74 5 6 18 27 . 47 . Launcher . | . . . . . . . . . . . . . . Special . | . . . . . . . . . . . . . . Kinetic 650 | . 40 6 38 27 145 72 25 17 22 35 56 68 99 Thermal 504 | . 40 6 37 31 57 108 22 11 26 22 28 30 86 Explosive . | . . . . . . . . . . . . . . Electromagnetic 100 | . . . . . 6 1 25 5 . 14 28 21 . Robot Hit Streak 33 | . 13 7 14 10 18 30 15 33 12 10 31 27 30 Robot Miss Streak 5 | . 2 1 3 2 5 4 5 . 1 2 2 5 4 Penetration Max 2 | . . . . . 1 . . . . 1 2 . 1 Secondary Targets 24 | . 1 2 2 3 3 . 1 3 . . 2 . 7 Max Gunslinging Chain 2 | . 1 1 1 1 1 . 1 1 . . 1 . 2 Shots Hit Robots 941 | . 63 6 59 41 161 123 50 26 38 50 92 83 149 Core Hits 458 | . 27 6 23 14 92 57 46 14 15 28 36 35 65 Critical Kills 8 | . . . . . 2 . . . . . 3 1 2 Critical Parts Destroyed 14 | . 1 . 1 . . . . . . 1 7 . 4 Critical Strikes 54 | . 5 . 3 1 6 3 . 1 1 3 14 5 12 Burn 27 | . 4 . 2 1 4 3 . . 1 1 4 1 6 Destroy 22 | . 1 . 1 . 2 . . . . 1 10 1 6 Blast 4 | . . . . . . . . 1 . . . 3 . Corrupt 1 | . . . . . . . . . . 1 . . . Melee Attacks 3 | . . . . . . . . . . . . 1 2 Impact . | . . . . . . . . . . . . . . Slashing 3 | . . . . . . . . . . . . 1 2 Piercing . | . . . . . . . . . . . . . . Sneak Attacks 1 | . . . . . . . . . . . . . 1 Combat Hostiles . | . . . . . . . . . . . . . . Follow-up Attacks . | . . . . . . . . . . . . . . Damage Inflicted 19950 | . 687 99 900 647 3419 2716 1340 554 893 1072 1438 2109 4076 Guns 14333 | . 687 93 885 637 2215 1259 985 396 516 665 1438 1014 3543 Cannons 4523 | . . . . . 1189 1434 69 158 377 364 . 932 . Explosions 857 | . . . . . . . 262 . . 43 . 135 417 Melee 144 | . . . . . . . . . . . . 28 116 Ramming 93 | . . 6 15 10 15 23 24 . . . . . . Kinetic 9534 | . 272 31 439 268 2184 728 436 311 445 581 660 1246 1933 Thermal 8767 | . 415 62 446 369 1158 1929 576 151 448 311 347 528 2027 Explosive . | . . . . . . . . . . . . . . Electromagnetic 1412 | . . . . . 62 36 304 92 . 180 431 307 . Impact . | . . . . . . . . . . . . . . Slashing 144 | . . . . . . . . . . . . 28 116 Piercing . | . . . . . . . . . . . . . . Highest Corruption 8 | . . . 3 3 1 3 . . . 7 7 8 7 Average Corruption 5 | . . . 2 3 1 2 . . . 4 7 7 3 Corruption Purged . | . . . . . . . . . . . . . . Corruption Blocked . | . . . . . . . . . . . . . . Effects 252 | . . . 3 3 5 15 . . . 19 82 93 32 Message Errors 61 | . . . . . . 2 . . . 6 20 25 8 Matter Fused 56 | . . . . 1 . 2 . . . 3 21 22 7 Heat Flow Errors 28 | . . . . . 2 . . . . 1 12 10 3 Energy Discharges 34 | . . . 1 . . 4 . . . 2 8 17 2 Parts Rejected 4 | . . . 1 1 . 1 . . . . . . 1 Parts Fused 2 | . . . . 1 . 1 . . . . . . . Data Loss (minor) 26 | . . . . . 1 2 . . . 3 8 6 6 Data Loss (major) 17 | . . . 1 . . . . . . 1 7 6 2 Misfires 12 | . . . . . 1 2 . . . 3 2 2 2 Alerts 4 | . . . . . 1 . . . . . 2 1 . Weapon Failures 8 | . . . . . . 1 . . . . 2 4 1 Overload Shots 1 | . . . . . . 1 . . . . . . . Overflow Damage 167 | . . . . . . 50 . . 27 . . 11 79 Projectiles 88 | . . . . . . 50 . . 27 . . 11 . Explosions 62 | . . . . . . . . . . . . . 62 Melee 17 | . . . . . . . . . . . . . 17 Knockbacks 31 | . . . . . 15 . . . 5 3 . 8 . Impact . | . . . . . . . . . . . . . . Kinetic 28 | . . . . . 14 . . . 4 3 . 7 . Secondary 3 | . . . . . 1 . . . 1 . . 1 . Self-Inflicted Damage 103 | . . 3 7 4 7 11 11 . . 60 . . . Shots 2 | . . . . . . . . . . 2 . . . Rammed 13 | . . 1 2 2 3 3 2 . . . . . . Targets Rammed 14 | . . 1 2 3 3 3 2 . . . . . . Kicked 1 | . . . . 1 . . . . . . . . . Crushed . | . . . . . . . . . . . . . . Highest Temperature 555 | . 215 56 43 36 555 243 161 33 138 435 390 452 419 Average Temperature 102 | . 68 26 14 7 162 54 28 13 61 186 138 128 90 Received Heat Transfer 4310 | . 141 . 129 525 702 363 138 144 72 110 729 508 749 Effects 25 | . . . . . 12 . . . . 4 3 5 1 Shutdowns 9 | . . . . . 2 . . . . 3 2 1 1 Energy Bleed 5 | . . . . . 1 . . . . . 1 3 . Matter Decay 6 | . . . . . 4 . . . . 1 . 1 . Damage (major) 5 | . . . . . 5 . . . . . . . . Siege Activations . | . . . . . . . . . . . . . . Robots Corrupted . | . . . . . . . . . . . . . . Combat Hostiles . | . . . . . . . . . . . . . . Parts Fried 1 | . . . . . . . . . . . . 1 . Impact Corruptions . | . . . . . . . . . . . . . . Robots Melted 1 | . . . . . . 1 . . . . . . . Combat Hostiles 1 | . . . . . . 1 . . . . . . . Parts Melted 27 | . 6 1 2 1 4 5 . . 1 . 1 2 4 Heat Transferred 17787 | . 1517 185 1258 888 2294 3306 705 296 925 629 1036 1109 3639 Parts Sabotaged . | . . . . . . . . . . . . . . Parts Stolen 2 | . . . . . . . . . 2 . . . . Parts Stripped . | . . . . . . . . . . . . . . Power Chain Reactions 4 | . . . . . . . 2 . . 1 . 1 . Alert | -11 -10 -10 -9 -9 -8 -7 -6 -6 -6 -5 -5 -5 -4 ------- Run | Yrd Mat Min Mat Sto Mat Fac Fac Low Low Fac Upp Upp Fac Peak Influence 566 | . 168 180 324 322 536 566 426 . . 119 . . 229 Initial 160 | . . 40 . 76 87 160 134 . . . . . 38 Average 200 | . 85 148 139 242 327 400 266 . . 38 . . 45 Maximum Alert Level 2 | . . . 1 1 2 2 2 . . . . . 1 Low Security (%) 56 | 100 100 100 72 16 19 1 31 . . 100 . . 99 Level 1 28 | . . . 27 83 42 52 67 . . . . . . Level 2 14 | . . . . . 38 45 1 . . . . . . Level 3 . | . . . . . . . . . . . . . . Level 4 . | . . . . . . . . . . . . . . Level 5 . | . . . . . . . . . . . . . . High Security . | . . . . . . . . . . . . . . Max Security . | . . . . . . . . . . . . . . Squads Dispatched 30 | . 2 . 2 4 4 4 3 . . 2 . 1 8 Investigation 5 | . 2 . . . . 1 . . . . . . 2 Extermination 8 | . . . . . . 2 1 . . 2 . . 3 Reinforcement 7 | . . . 2 1 1 1 2 . . . . . . Assault 1 | . . . . . . . . . . . . 1 . Garrison 9 | . . . . 3 3 . . . . . . . 3 Intercept . | . . . . . . . . . . . . . . Searches Triggered . | . . . . . . . . . . . . . . Construction Impeded 1 | . . . . . . . 1 . . . . . . Haulers Reinforced . | . . . . . . . . . . . . . . Active Scanning Responses . | . . . . . . . . . . . . . . Cargo Convoy Interrupts 1 | . . . . . . . . . . 1 . . . Stealth | -11 -10 -10 -9 -9 -8 -7 -6 -6 -6 -5 -5 -5 -4 --------- Run | Yrd Mat Min Mat Sto Mat Fac Fac Low Low Fac Upp Upp Fac Distress Signals 12 | . 1 . 3 3 2 . . . . 1 . . 2 Communications Jammed . | . . . . . . . . . . . . . . Distress Signals . | . . . . . . . . . . . . . . Times Spotted 270 | . 12 6 21 25 44 30 18 8 11 11 15 22 47 Peak Tracking Total 17 | . 2 3 5 9 5 4 4 5 3 4 7 13 17 Tactical Retreats 9 | . . . . . . . . . 2 1 2 3 1 Traps | -11 -10 -10 -9 -9 -8 -7 -6 -6 -6 -5 -5 -5 -4 ------- Run | Yrd Mat Min Mat Sto Mat Fac Fac Low Low Fac Upp Upp Fac Traps Triggered 6 | . 2 . 3 . . 1 . . . . . . . Indirectly . | . . . . . . . . . . . . . . Trap Hack Attempts . | . . . . . . . . . . . . . . Triggered . | . . . . . . . . . . . . . . Disarmed . | . . . . . . . . . . . . . . Reprogrammed . | . . . . . . . . . . . . . . Reused . | . . . . . . . . . . . . . . Traps Extracted . | . . . . . . . . . . . . . . Installed . | . . . . . . . . . . . . . . Triggered 4 | . . . . . . . . . 3 1 . . . Machines | -11 -10 -10 -9 -9 -8 -7 -6 -6 -6 -5 -5 -5 -4 ---------- Run | Yrd Mat Min Mat Sto Mat Fac Fac Low Low Fac Upp Upp Fac Machines Disabled 18 | . . . 3 . 1 6 2 . . 2 . . 4 Max in Single Turn 4 | . . . 1 . 1 4 1 . . 1 . . 2 Machines Repaired . | . . . . . . . . . . . . . . Machines Dismantled . | . . . . . . . . . . . . . . Machines Sabotaged . | . . . . . . . . . . . . . . Overloaded Fab Kills . | . . . . . . . . . . . . . . Hacking | -11 -10 -10 -9 -9 -8 -7 -6 -6 -6 -5 -5 -5 -4 --------- Run | Yrd Mat Min Mat Sto Mat Fac Fac Low Low Fac Upp Upp Fac Machines Accessed 37 | . 6 . 2 1 2 12 8 1 . 1 1 . 3 Terminals 19 | . 4 . 1 1 1 6 5 . . 1 . . . Fabricators 3 | . . . . . . 1 . . . . . . 2 Repair Stations 4 | . 1 . . . . 1 2 . . . . . . Recycling Units 4 | . 1 . . . . 1 1 . . . . . 1 Scanalyzers 4 | . . . 1 . 1 2 . . . . . . . Garrison Access 1 | . . . . . . 1 . . . . . . . Total Hacks 82 | . 14 . 5 3 6 21 19 1 . 2 1 . 10 Successful 54 | . 10 . 3 2 5 14 12 1 . . 1 . 6 Failed 28 | . 4 . 2 1 1 7 7 . . 2 . . 4 Catastrophic 3 | . . . . . 1 1 1 . . . . . . Database Lockouts . | . . . . . . . . . . . . . . Manual 5 | . . . . 1 . 1 2 . . 1 . . . Terminals 48 | . 11 . 4 3 2 12 14 . . 2 . . . Fabricators 11 | . . . . . . 2 . . . . . . 9 Repair Stations 8 | . 2 . . . . 2 4 . . . . . . Recycling Units 4 | . 1 . . . . 1 1 . . . . . 1 Scanalyzers 8 | . . . 1 . 4 3 . . . . . . . Garrison Access 1 | . . . . . . 1 . . . . . . . Terminal Hacks 31 | . 7 . 3 2 1 7 9 1 . . 1 . . Record 10 | . . . . . . 4 6 . . . . . . Prototype ID Bank 3 | . 2 . 1 . . . . . . . . . . Open Door 2 | . . . . . . . . 1 . . 1 . . Open DSF 3 | . . . . . . 2 1 . . . . . . Level Access Points 2 | . 1 . . 1 . . . . . . . . . Terminal Index 1 | . . . . 1 . . . . . . . . . Alert Level 2 | . 1 . . . . 1 . . . . . . . Locate Traps 4 | . 1 . 1 . . . 2 . . . . . . Dispatch Records 1 | . . . 1 . . . . . . . . . . Transport Status 1 | . 1 . . . . . . . . . . . . Assault Status 1 | . . . . . 1 . . . . . . . . Zone Layout 1 | . 1 . . . . . . . . . . . . Fabricator Hacks 7 | . . . . . . 2 . . . . . . 5 Network Status 1 | . . . . . . . . . . . . . 1 Load Schematic 3 | . . . . . . 1 . . . . . . 2 Build 3 | . . . . . . 1 . . . . . . 2 Repair Station Hacks 5 | . 2 . . . . 1 2 . . . . . . Scan Component 3 | . 1 . . . . 1 1 . . . . . . Repair 2 | . 1 . . . . . 1 . . . . . . Recycling Unit Hacks 4 | . 1 . . . . 1 1 . . . . . 1 Report Inventory 4 | . 1 . . . . 1 1 . . . . . 1 Scanalyzer 6 | . . . . . 4 2 . . . . . . . Insert Component 3 | . . . . . 2 1 . . . . . . . Analyze 3 | . . . . . 2 1 . . . . . . . Garrison Access Hacks 1 | . . . . . . 1 . . . . . . . Coupler Status 1 | . . . . . . 1 . . . . . . . Unauthorized Hacks . | . . . . . . . . . . . . . . Terminals . | . . . . . . . . . . . . . . Fabricators . | . . . . . . . . . . . . . . Repair Stations . | . . . . . . . . . . . . . . Recycling Units . | . . . . . . . . . . . . . . Scanalyzers . | . . . . . . . . . . . . . . Garrison Access . | . . . . . . . . . . . . . . Data Cores Recovered . | . . . . . . . . . . . . . . Used . | . . . . . . . . . . . . . . Hacking Detections 26 | . 3 . 2 1 2 9 6 . . 1 . . 2 Full Trace Events 3 | . . . . . . 1 . . . . . . 2 Feedback Events . | . . . . . . . . . . . . . . Feedback Blocked . | . . . . . . . . . . . . . . Robot Schematics Acquired . | . . . . . . . . . . . . . . Robots Built . | . . . . . . . . . . . . . . Authchips . | . . . . . . . . . . . . . . Time . | . . . . . . . . . . . . . . Total Robot Build Rating . | . . . . . . . . . . . . . . Part Schematics Acquired 2 | . . . . . 1 1 . . . . . . . Parts Built 5 | . . . . . . 1 . . . . . . 4 Authchips . | . . . . . . . . . . . . . . Time 200 | . . . . . . 116 . . . . . . 84 Total Part Build Rating 19 | . . . . . . 3 . . . . . . 16 Parts Repaired 2 | . 1 . . . . . 1 . . . . . . Time 70 | . 26 . . . . . 44 . . . . . . Parts Recycled . | . . . . . . . . . . . . . . Recycled Matter . | . . . . . . . . . . . . . . Retrieved Matter . | . . . . . . . . . . . . . . Retrieved Components . | . . . . . . . . . . . . . . Parts Scanalyzed 3 | . . . . . 2 1 . . . . . . . Part Schematics Acquired 2 | . . . . . 1 1 . . . . . . . Parts Damaged . | . . . . . . . . . . . . . . Bothacking | -11 -10 -10 -9 -9 -8 -7 -6 -6 -6 -5 -5 -5 -4 ------------ Run | Yrd Mat Min Mat Sto Mat Fac Fac Low Low Fac Upp Upp Fac Used RIF Installer . | . . . . . . . . . . . . . . Robots Hacked . | . . . . . . . . . . . . . . Non-combat . | . . . . . . . . . . . . . . Combat . | . . . . . . . . . . . . . . Robot Hacks Applied . | . . . . . . . . . . . . . . Relay Couplers Released . | . . . . . . . . . . . . . . Fabnet Peak Effective % . | . . . . . . . . . . . . . . Robots Rewired 5 | . . . . . . . . 1 . . 2 2 . Allies Hacked . | . . . . . . . . . . . . . . Hacks Repelled . | . . . . . . . . . . . . . . Allies | -11 -10 -10 -9 -9 -8 -7 -6 -6 -6 -5 -5 -5 -4 -------- Run | Yrd Mat Min Mat Sto Mat Fac Fac Low Low Fac Upp Upp Fac Total Allies 20 | . . 2 . 10 . 3 . 1 . . 2 2 . Largest Group 10 | . . 2 2 10 . 3 3 1 1 . 2 2 . Highest-Rated Group 93 | . . 45 45 88 . 93 93 29 29 . 56 60 . Highest-Rated Ally 31 | . . 31 31 16 . 31 31 29 29 . 30 30 . Total Orders . | . . . . . . . . . . . . . . Ally Attacks 130 | . . . 17 51 . 13 23 . 13 . . 13 . Total Damage 1432 | . . . 171 415 . 138 312 . 172 . . 224 . Kills 14 | . . . 3 4 . 1 4 . . . . 2 . Allies Corrupted . | . . . . . . . . . . . . . . Allies Melted . | . . . . . . . . . . . . . . Intel | -11 -10 -10 -9 -9 -8 -7 -6 -6 -6 -5 -5 -5 -4 ------- Run | Yrd Mat Min Mat Sto Mat Fac Fac Low Low Fac Upp Upp Fac Robot Analysis Total . | . . . . . . . . . . . . . . Derelict Logs Recovered 8 | . . 1 . . . . . 2 . . 2 3 . Drone Launches . | . . . . . . . . . . . . . . Drone Recoveries . | . . . . . . . . . . . . . . Exploration | -11 -10 -10 -9 -9 -8 -7 -6 -6 -6 -5 -5 -5 -4 ------------- Run | Yrd Mat Min Mat Sto Mat Fac Fac Low Low Fac Upp Upp Fac Turns Passed 15956 | 57 670 409 556 302 1326 1771 905 704 970 1182 2603 2793 1708 Spaces Moved 11418 | 52 587 410 496 236 972 1387 769 713 970 784 1908 1463 671 Core 117 | 6 . . . 14 76 . . . . . . . 21 Treads 130 | . . . . . . . . . . . . . 130 Legs 3856 | . . . . 15 40 . . . . 215 1908 1463 215 Wheels 7149 | 46 587 410 496 207 856 1387 769 713 970 569 . . 139 Hover 166 | . . . . . . . . . . . . . 166 Flight . | . . . . . . . . . . . . . . Fastest Speed 50 | 50 80 80 80 50 50 100 93 93 93 93 120 120 100 Average Speed 118 | 85 85 80 82 84 105 101 95 93 93 117 128 177 192 Slowest Speed 950 | 90 90 80 85 190 400 115 115 93 93 330 190 260 950 Overloaded Moves . | . . . . . . . . . . . . . . Propulsion Burnouts . | . . . . . . . . . . . . . . Robots Hopped . | . . . . . . . . . . . . . . Cave-ins Triggered . | . . . . . . . . . . . . . . Exploration Rate (%) 50 | 3 69 77 45 36 56 37 21 89 53 14 96 93 14 Regions Visited 13 Branch Regions 6 Pre-discovered Areas 5 | . . 2 . . . . . . . . 2 1 . Known Exits Taken 12 | . 1 1 1 1 1 1 1 1 1 1 1 1 . Unknown Exits Taken 1 | 1 . . . . . . . . . . . . . Scrap Searched 6 | . . . . . . . . . 1 . 2 3 . Spaces Dug . | . . . . . . . . . . . . . . Terrain Destroyed 82 | . . . . . 4 17 6 . 2 2 1 24 26 Melee . | . . . . . . . . . . . . . . Projectile 44 | . . . . . 4 3 2 . 2 2 . 20 11 AOE 37 | . . . . . . 14 4 . . . . 4 15 Terrain Rammed . | . . . . . . . . . . . . . . Walls Destroyed . | . . . . . . . . . . . . . . Machines Disabled . | . . . . . . . . . . . . . . Actions | -11 -10 -10 -9 -9 -8 -7 -6 -6 -6 -5 -5 -5 -4 --------- Run | Yrd Mat Min Mat Sto Mat Fac Fac Low Low Fac Upp Upp Fac Total 12988 | 63 687 480 579 283 1132 1645 888 730 997 1006 1992 1561 945 Wait 539 | . 26 62 9 5 7 129 59 2 2 144 7 . 87 Move 11405 | 51 586 409 495 235 971 1386 768 712 969 783 1907 1462 671 Hop . | . . . . . . . . . . . . . . Pick Up 98 | 6 7 1 7 1 12 26 8 1 2 11 4 5 7 Fast Attach 98 | 2 4 . 4 5 23 4 2 1 2 9 7 7 28 Attach 57 | 4 1 . 3 3 3 7 3 1 1 5 . 6 20 Detach 27 | . 2 . 1 . 4 2 1 . . 3 . 2 12 Swap 68 | . 8 . 7 . 8 7 7 . 2 14 6 4 5 Drop 142 | . 13 1 13 . 25 21 13 1 1 18 13 4 19 Fire 489 | . 40 6 38 31 76 60 25 11 18 19 28 43 94 Melee 3 | . . . . . . . . . . . . 1 2 Ram 13 | . . 1 2 2 3 3 2 . . . . . . Kick 1 | . . . . 1 . . . . . . . . . Crush . | . . . . . . . . . . . . . . Escape Stasis . | . . . . . . . . . . . . . . Rewire 48 | . . . . . . . . 1 . . 20 27 . Trap . | . . . . . . . . . . . . . . Miscellaneous . | . . . . . . . . . . . . . . Route ------- -11/Scrapyard -10/Materials (discovered 4 exits: *Mat x3 / *Min) -10/Mines -9/Materials (discovered 3 exits: *Mat / [*Min] / *Sto) -9/Storage -8/Materials (discovered 3 exits: *Fac x3) -7/Factory -6/Factory -6/Lower Caves -6/Lower Caves -5/Factory (discovered 2 exits: Fac / *Upp) -5/Upper Caves -5/Upper Caves -4/Factory (discovered 1 exit: Upp) History --------- Turn | Location | Event 7 | -11/Scrapyard | Discovered new exit (range 16) 58 | -11/Scrapyard | Entered Materials 232 | -10/Materials | Discovered new exit (range 10) 346 | -10/Materials | Discovered new exit (range 15) 360 | -10/Materials | Identified exit to Materials 412 | -10/Materials | Discovered new exit (range 14) 439 | -10/Materials | Identified exit to Mines 545 | -10/Materials | Repaired Med. Laser 728 | -10/Materials | Entered Mines 735 | -10/Mines | Received a Rocket Launcher from a helpful Derelict 749 | -10/Mines | Discovered exit to Materials (range 7) 756 | -10/Mines | Build established: Mutant 822 | -10/Mines | Learned location of Storage (-9) 900 | -10/Mines | Learned location of Zion (-6) 1137 | -10/Mines | Entered Materials 1137 | -9/Materials | Accompanied by 2 allies 1137 | -9/Materials | Evolved 2 slots: Propulsion x1, Utility x1 1142 | -9/Materials | Led the pair of lost Derelicts to an unsafe place 1419 | -9/Materials | Discovered new exit (range 15) 1590 | -9/Materials | Discovered new exit (range 4) 1594 | -9/Materials | Identified exit to Materials 1673 | -9/Materials | Discovered new exit (range 7) 1689 | -9/Materials | Identified exit to Storage 1693 | -9/Materials | Entered Storage 1706 | -9/Storage | Assisted by bots powering up and referring to "LRC-V3" 1718 | -9/Storage | Garrison activated, responded to threat 1903 | -9/Storage | Lost 7 allies 1943 | -9/Storage | Core integrity fell below 50% 1995 | -9/Storage | Entered Materials 1995 | -8/Materials | Evolved 2 slots: Propulsion x1, Weapon x1 2019 | -8/Materials | Lost 13 parts (1p7n1u4w) 2257 | -8/Materials | Garrison activated, responded to threat 2291 | -8/Materials | Destroyed 8 combat bots 2365 | -8/Materials | Discovered new exit (range 9) 2372 | -8/Materials | Identified exit to Factory 2582 | -8/Materials | Lost 5 parts (3n1u1w) 2923 | -8/Materials | Discovered exit to Factory (range 16) 3182 | -8/Materials | Discovered exit to Factory (range 8) 3321 | -8/Materials | Entered Factory 3321 | -7/Factory | Evolved 2 slots: Power x1, Utility x1 3554 | -7/Factory | Found Prototype Launcher 3681 | -7/Factory | Fabricated Prc. Beam Rifle? 3766 | -7/Factory | Build established: Skirmisher 4509 | -7/Factory | Build established: Gunner 4842 | -7/Factory | Allied Derelicts emerged from ambush trap array 5029 | -7/Factory | Discovered new exit (range 14) 5049 | -7/Factory | Identified exit to Factory 5092 | -7/Factory | Entered another Factory area 5092 | -6/Factory | Accompanied by 3 allies 5092 | -6/Factory | Evolved 2 slots: Propulsion x1, Utility x1 5420 | -6/Factory | Repaired Arm. Huge Wheel 5727 | -6/Factory | Found Prototype Device 5949 | -6/Factory | Discovered new exit (range 15) 5968 | -6/Factory | Identified exit to Lower Caves 5997 | -6/Factory | Entered Lower Caves 6076 | -6/Lower Caves | Attracted the attention of an 0b10 outpost 6368 | -6/Lower Caves | Encountered a Warlord checkpoint 6502 | -6/Lower Caves | Learned Factory emergency access door positions 6555 | -6/Lower Caves | Discovered new exit (range 15) 6567 | -6/Lower Caves | Identified exit to Lower Caves 6577 | -6/Lower Caves | Learned location of 1 exit from Factory 6701 | -6/Lower Caves | Entered another Lower Caves area 6701 | -6/Lower Caves | Accompanied by 1 ally 6787 | -6/Lower Caves | Discovered new exit (range 5) 6791 | -6/Lower Caves | Identified exit to Factory 7006 | -6/Lower Caves | Spotted B-75 Beast 7031 | -6/Lower Caves | Destroyed B-75 Beast 7303 | -6/Lower Caves | Build established: Scavenger-Gunner 7671 | -6/Lower Caves | Entered Factory 7671 | -5/Factory | Evolved 2 slots: Utility x1, Weapon x1 7672 | -5/Factory | Identified exit to Factory 8312 | -5/Factory | Discovered new exit (range 6) 8318 | -5/Factory | Identified exit to Upper Caves 8436 | -5/Factory | Build established: Gunner 8534 | -5/Factory | Lost 3 parts (2n1u) 8801 | -5/Factory | Cargo convoy interrupted 8853 | -5/Factory | Entered Upper Caves 9200 | -5/Upper Caves | Spotted B-75 Beast 9493 | -5/Upper Caves | Learned location of Armory (-4) 10189 | -5/Upper Caves | Learned location of Warlord (-5) 10302 | -5/Upper Caves | Destroyed B-75 Beast 10425 | -5/Upper Caves | Ambushed by wild Derelicts 10554 | -5/Upper Caves | Build established: Scavenger-Gunner 10734 | -5/Upper Caves | Attracted the attention of an 0b10 outpost 11399 | -5/Upper Caves | Discovered new exit (range 15) 11415 | -5/Upper Caves | Identified exit to Upper Caves 11456 | -5/Upper Caves | Entered another Upper Caves area 11456 | -5/Upper Caves | Accompanied by 2 allies 11545 | -5/Upper Caves | Encountered a Warlord checkpoint 11718 | -5/Upper Caves | Attracted the attention of an 0b10 checkpoint 11824 | -5/Upper Caves | Learned Factory stockpile data 11867 | -5/Upper Caves | Attracted the attention of an 0b10 outpost 11942 | -5/Upper Caves | Destroyed 8 combat bots 11942 | -5/Upper Caves | Lost 4 parts (1n1u2w) 12751 | -5/Upper Caves | Build established: Scavenger-Mutant 13957 | -5/Upper Caves | Lost 3 parts (1n2w) 14009 | -5/Upper Caves | Build established: Scavenger-Gunner 14200 | -5/Upper Caves | Discovered exit to Factory (range 13) 14249 | -5/Upper Caves | Entered Factory 14249 | -4/Factory | Evolved 2 slots: Propulsion x1, Weapon x1 14250 | -4/Factory | Identified exit to Upper Caves 15215 | -4/Factory | Fabricated Arm. Huge Wheel (x2) 15487 | -4/Factory | Garrison activated, responded to threat 15549 | -4/Factory | Lost 16 parts (4p2n5u5w) 15591 | -4/Factory | Core integrity fell below 50% 15637 | -4/Factory | Core integrity fell below 20% 15673 | -4/Factory | Lost 9 parts (1p3n3u2w) 15904 | -4/Factory | Fabricated Arm. Huge Wheel (x2) 15957 | -4/Factory | Destroyed by G-67 Veteran with Plasma Rifle Last Messages --------------- Slug penetrates S-27 Virus. S-27 Virus destroyed. Switching to secondary target: S-27 Virus. Slug penetrates Subcomponent Replicator. Slug penetrates S-27 Virus. S-27 Virus suffers critical hit (Destroy). Destroyed Lgt. Nuclear Core. Subcomponent Replicator disabled. Railgun destroyed. S-27 Virus destroyed. Switching to secondary target: S-27 Virus. Slug penetrates S-27 Virus. S-27 Virus destroyed. Switching to secondary target: S-27 Virus. Slug penetrates S-27 Virus. S-27 Virus destroyed. [Achievement: Gunslinger] Subcomponent Replicator disabled. G-67 Veteran suffers critical hit (Burn). Slug penetrates G-67 Veteran. Map ----- +----------------------------------------------------+ | | | | | | | | | | | | | ????????????????????????????????###??????????????? | | ????????????????????????????????! ??????????????? | | ???????????????????????????????? ??????????????? | | ???????????????????????????????? ??????????????? | | ???????????????????????????????? ??????????????? | | ???????????????????????????????"" ??????????????? | | ??????????????????????????????""" ??????????????? | | ???????????????????????????????"" #??############ | | ??????????????????????????????? #??# | | ????????????????????????????????" #??# """" | | ????????????????????????????????" #??# ""F" | | ????????????????????????????????? #??# "" | | ????????????????????????????????? #??# =// | | ??????????????????????????###+####+#### /% | | ??????????????????????????# + // | | ??????????????????????????# *!####### | | ??????????????????????????# == "#????# | | ?????????????##############= ##????# | | ?????????????# [gg #?????# ] | | ?????????????# =@# #?????# | | ?????????????# =%%# #???######"" | | ?????????????# """"*%[# | | ?????????????# s"""""*%# | | ???????????????????""" =s[+ ^ | | ??????????????????? # | | ?????????????????? """" # ^ | | ???????????????????""""" # !#### ############# | | ????????????????????"" # *%#???+#???????# # | | ????????????????????? # =#????????????# # | | ????????????????????? # #????????????# # | | ?????????????????????###### #?????????"" ### | | ??????????????????????????# #????????????# # | | ??????????????????????????? #????????????### | | ??????????????????????????? ???????????????#### | | ??????????????????????????????????????????????# # | | ??????????????????????????????????????????????#### | | ?????????????????????????????????????????????????# | | ?????????????????????????????????????????????????# | | ?????????????????????????????????????????????????# | | ?????????????????????????????????????????????????# | | ?????????????????????????????????????????????????# | | ?????????????????????????????????????????????????# | | ?????????????????????????????????????????????????# | | ???????????????????????????????????????????????### | +----------------------------------------------------+ Best States ------------- Heat Dissipation 81 Energy Generation 51 Energy Capacity 555 Matter Stores 363 Matter Capacity 400 Sight Range 16 Robot Scan Range 16 Terrain Scan Density 10 Additional Mass Support 9 Base Temperature (-) 200 EM Shielding 2 Armor Coverage 225 Resistance: KI 20 Resistance: TH 20 Resistance: EX 20 Resistance: EM 20 Resistance: I 20 Resistance: S 20 Resistance: P 20 Weapon Cycling 20 Evasion (%) 55 Targeting Accuracy 8 Target Analysis 6 Core Analysis 6 Recoil Reduction 2 Particle Charging 15 Offensive Hacking 10 Item Schematics ----------------- Prc. Beam Rifle | -8/Materials | Scanalyzed Arm. Huge Wheel | -7/Factory | Scanalyzed Robot Schematics ------------------ None Fabricated ------------ Prc. Beam Rifle | x1 | -7/Factory Arm. Huge Wheel | x2 | -4/Factory Arm. Huge Wheel | x2 | -4/Factory Alien Tech Used ----------------- None Achievements -------------- A New Friend Gunslinger I Spy Knowing Is Half The Battle Oops Use The Force Challenges ------------ None Game ------ Seed BiomechanicalNeutronFragment Manual? 0 Play Time 02:29:25 Cumulative 13.0 hours Start 2024.03.18 @ 13:46:10 End 2024.03.18 @ 19:59:18 Sessions 3 Manual Loads 0 Difficulty Adventurer Special Mode None Game No. 6 Rogue 0 Adventurer 6 Explorer 0 Win Type - Total 0 Types 0/0/0/0/0/0/0/0/0 Lore% 14 Gallery% 19 Achievement% 14 Wizard Run 0 Options --------- Layout 1 ASCII 0 Keyboard 1 Movement Vi Keybinds 0 Fullscreen 1 Font 24/Terminus Map View 50x40 Zoom Use 0% Tactical HUD 0 Map Filters NONE Filters NONE Steam 1 RUN: 8fd29783-c541-47b1-bb80-b2e72efe4e68